[Event "ONJK DE"]
[Site "Enschede, Netherlands"]
[Date "2022.08.10"]
[Round "7.7"]
[White "Leenen, Boyd (E)"]
[Black "Koppenens, Oscar (E)"]
[Result "1/2-1/2"]
[TimeControl "40min + 30sec/move"]
[WhiteElo "1417"]
[BlackElo "1266"]

1. Nf3 {[%clk 00:40:57]} {[%emt 00:00:03]} e6 {[%clk 00:40:56]} {[%emt
00:00:05]} 2. d4 {[%clk 00:41:21]} {[%emt 00:00:05]} Nf6 {[%clk 00:41:21]}
{[%emt 00:00:05]} 3. c4 {[%clk 00:41:42]} {[%emt 00:00:09]} d5 {[%clk
00:41:47]} {[%emt 00:00:05]} 4. Nc3 {[%clk 00:42:03]} {[%emt 00:00:05]} g6
{[%clk 00:41:54]} {[%emt 00:00:27]} 5. g3 {[%clk 00:42:26]} {[%emt 00:00:06]}
c6 {[%clk 00:42:20]} {[%emt 00:00:04]} 6. Bg2 {[%clk 00:42:51]} {[%emt
00:00:05]} Nbd7 {[%clk 00:42:45]} {[%emt 00:00:05]} 7. e3 {[%clk 00:41:08]}
{[%emt 00:02:13]} Bg7 {[%clk 00:42:56]} {[%emt 00:00:18]} 8. O-O {[%clk
00:41:27]} {[%emt 00:00:10]} O-O {[%clk 00:43:10]} {[%emt 00:00:17]} 9. b3
{[%clk 00:41:41]} {[%emt 00:00:15]} b6 {[%clk 00:43:34]} {[%emt 00:00:06]} 10.
Ba3 {[%clk 00:42:03]} {[%emt 00:00:09]} Re8 {[%clk 00:43:53]} {[%emt 00:00:09]}
11. Rc1 {[%clk 00:41:52]} {[%emt 00:00:42]} Ba6 {[%clk 00:44:00]} {[%emt
00:00:23]} 12. Ne2 {[%clk 00:41:17]} {[%emt 00:01:05]} Rc8 {[%clk 00:43:55]}
{[%emt 00:00:35]} 13. Re1 {[%clk 00:41:29]} {[%emt 00:00:17]} c5 {[%clk
00:42:44]} {[%emt 00:01:42]} 14. Nf4 {[%clk 00:39:32]} {[%emt 00:02:26]} dxc4
{[%clk 00:41:06]} {[%emt 00:02:08]} 15. dxc5 {[%clk 00:38:18]} {[%emt
00:01:45]} bxc5 {[%clk 00:39:51]} {[%emt 00:01:45]} 16. bxc4 {[%clk 00:38:12]}
{[%emt 00:00:36]} Qa5 {[%clk 00:38:42]} {[%emt 00:01:39]} 17. Qb3 {[%emt
00:01:10]} Nb6 {[%clk 00:36:48]} {[%emt 00:02:22]} 18. Bf1 {[%clk 00:36:15]}
{[%emt 00:01:48]} Rb8 {[%clk 00:36:08]} {[%emt 00:01:11]} 19. Qc3 {[%clk
00:35:26]} {[%emt 00:01:19]} Qxc3 {[%clk 00:36:08]} {[%emt 00:00:31]} 20. Rxc3
{[%clk 00:35:42]} {[%emt 00:00:13]} e5 {[%clk 00:33:22]} {[%emt 00:03:16]} 21.
Nd3 {[%clk 00:35:12]} {[%emt 00:01:00]} Bxc4 {[%clk 00:32:53]} {[%emt
00:00:59]} 22. Nxc5 {[%clk 00:34:44]} {[%emt 00:00:58]} Bxa2 {[%clk 00:31:51]}
{[%emt 00:01:31]} 23. Rcc1 {[%clk 00:34:32]} {[%emt 00:00:42]} e4 {[%clk
00:31:38]} {[%emt 00:00:44]} 24. Nd4 {[%clk 00:32:22]} {[%emt 00:02:40]} Bd5
{[%clk 00:30:51]} {[%emt 00:01:16]} 25. Bh3 {[%clk 00:31:59]} {[%emt 00:00:50]}
Nc4 {[%clk 00:27:55]} {[%emt 00:03:30]} 26. Ra1 {[%clk 00:31:32]} {[%emt
00:00:58]} Nh5 {[%clk 00:26:59]} {[%emt 00:01:25]} 27. Na6 {[%clk 00:29:53]}
{[%emt 00:02:10]} Bxd4 {[%clk 00:26:18]} {[%emt 00:01:11]} 28. exd4 {[%clk
00:29:12]} {[%emt 00:01:11]} Rb3 {[%clk 00:25:13]} {[%emt 00:01:34]} 29. Bc1
{[%clk 00:28:54]} {[%emt 00:00:48]} Re6 {[%emt 00:03:49]} 30. Nc7 1/2-1/2

[Event "ONJK DE"]
[Site "Enschede, Netherlands"]
[Date "2022.08.10"]
[Round "7.8"]
[White "Los, Evan (E)"]
[Black "Meert, Senne (E)"]
[Result "1-0"]
[TimeControl "40min + 30sec/move"]
[WhiteElo "1050"]
[BlackElo "100"]

1. e4 {[%clk 00:40:30]} e6 {[%clk 00:40:30]} 2. d4 {[%clk 00:40:30]} d5 {[%clk
00:40:46]} {[%emt 01:37:41]} 3. exd5 exd5 {[%clk 00:40:46]} 4. Nf3 {[%clk
00:41:56]} c5 {[%clk 00:40:46]} 5. c4 {[%clk 00:41:56]} cxd4 {[%clk 00:40:25]}
{[%emt 00:01:40]} 6. Nxd4 {[%clk 00:42:31]} dxc4 {[%clk 00:40:25]} 7. Bxc4
{[%clk 00:42:31]} Nc6 {[%emt 00:02:08]} 8. Bb5 {[%clk 00:41:35]} {[%emt
00:00:51]} Bc5 {[%clk 00:40:30]} {[%emt 00:00:39]} 9. Qe2+ {[%clk 00:41:51]}
{[%emt 00:00:21]} Nge7 {[%clk 00:40:26]} {[%emt 00:00:34]} 10. Nxc6 {[%clk
00:42:07]} {[%emt 00:00:14]} bxc6 11. Bxc6+ {[%clk 00:42:30]} Bd7 {[%emt
00:00:15]} 12. Bxa8 {[%emt 00:00:03]} Qxa8 {[%clk 00:40:17]} {[%emt 00:00:41]}
13. O-O {[%clk 00:42:56]} {[%emt 00:00:04]} O-O {[%clk 00:40:13]} {[%emt
00:00:31]} 14. Nc3 {[%clk 00:43:18]} {[%emt 00:00:12]} Qb7 {[%clk 00:40:12]}
{[%emt 00:00:21]} 15. Bg5 {[%clk 00:43:41]} {[%emt 00:00:17]} Nd5 {[%clk
00:40:01]} {[%emt 00:00:39]} 16. Nxd5 {[%clk 00:43:40]} {[%emt 00:00:31]} Bb5
{[%emt 00:00:19]} 17. Ne7+ {[%emt 00:00:25]} Kh8 {[%clk 00:39:25]} {[%emt
00:00:17]} 18. Qe5 {[%clk 00:43:52]} {[%emt 00:00:24]} Bxe7 {[%clk 00:39:02]}
{[%emt 00:00:49]} 19. Qxe7 {[%clk 00:44:11]} {[%emt 00:00:14]} Qxe7 {[%clk
00:39:02]} {[%emt 00:00:30]} 20. Bxe7 {[%clk 00:44:37]} {[%emt 00:00:05]} Re8
{[%clk 00:39:04]} {[%emt 00:00:19]} 21. Rfe1 {[%clk 00:45:06]} h5 {[%emt
00:02:15]} 22. Rad1 {[%emt 00:00:16]} f6 {[%clk 00:34:03]} {[%emt 00:03:06]} 23.
Rd8 {[%clk 00:45:27]} {[%emt 00:00:13]} Kh7 {[%emt 00:00:22]} 24. Rxe8 {[%emt
00:00:10]} Bxe8 {[%clk 00:33:43]} {[%emt 00:00:18]} 25. Bxf6 {[%clk 00:45:55]}
{[%emt 00:00:02]} Bf7 {[%clk 00:33:42]} {[%emt 00:00:26]} 26. Bd4 {[%clk
00:46:19]} {[%emt 00:00:10]} a6 {[%clk 00:33:41]} {[%emt 00:00:26]} 27. Re7
{[%clk 00:46:48]} {[%emt 00:00:07]} Bxa2 {[%clk 00:33:42]} {[%emt 00:00:29]} 28.
Rxg7+ {[%clk 00:47:15]} {[%emt 00:00:03]} Kh6 {[%emt 00:00:37]} 29. Ra7 {[%emt
00:00:02]} Bc4 {[%clk 00:33:12]} {[%emt 00:00:19]} 30. Rg7 {[%clk 00:47:32]}
{[%emt 00:00:16]} h4 {[%clk 00:31:59]} {[%emt 00:01:38]} 31. f4 {[%clk
00:48:02]} Bd3 {[%clk 00:31:18]} {[%emt 00:01:00]} 32. Rd7 {[%clk 00:48:31]}
Bb5 {[%clk 00:31:09]} {[%emt 00:00:51]} 33. Rd6+ {[%clk 00:48:48]} {[%emt
00:00:19]} Kh7 {[%clk 00:31:07]} {[%emt 00:00:27]} 34. f5 {[%clk 00:49:16]} Kg8
{[%clk 00:30:29]} {[%emt 00:01:11]} 35. f6 {[%clk 00:49:45]} {[%emt 00:00:05]}
Kf7 {[%emt 00:00:31]} 36. Rb6 {[%emt 00:00:10]} Bc4 {[%clk 00:28:53]} {[%emt
00:01:21]} 37. Rb7+ {[%clk 00:49:26]} {[%emt 00:00:53]} Kg8 {[%clk 00:28:59]}
{[%emt 00:00:15]} 38. Bf2 {[%clk 00:49:50]} {[%emt 00:00:13]} Bd5 {[%clk
00:28:53]} {[%emt 00:00:32]} 39. Ra7 {[%clk 00:50:13]} {[%emt 00:00:12]} Bc4
{[%clk 00:29:02]} {[%emt 00:00:09]} 40. Bxh4 {[%clk 00:50:38]} Bb5 {[%clk
00:28:50]} {[%emt 00:00:52]} 41. Bf2 {[%clk 00:51:05]} {[%emt 00:00:10]} Bc4
{[%emt 00:00:16]} 42. g4 {[%emt 00:00:05]} Be6 {[%emt 00:01:10]} 43. g5 {[%emt
00:00:12]} Bf7 {[%clk 00:26:49]} {[%emt 00:00:42]} 44. Rxa6 {[%clk 00:51:23]}
{[%emt 00:00:18]} Kh7 {[%clk 00:26:26]} {[%emt 00:00:45]} 45. Ra7 {[%clk
00:51:52]} Kg6 {[%emt 00:00:17]} 46. b4 {[%emt 00:00:04]} Bc4 {[%emt 00:00:17]}
47. Rg7+ {[%emt 00:00:10]} Kf5 {[%emt 00:00:41]} 48. f7 {[%emt 00:00:07]} Bxf7
{[%clk 00:25:18]} {[%emt 00:00:09]} 49. Rxf7+ {[%clk 00:52:21]} {[%emt
00:00:03]} Kxg5 {[%clk 00:25:06]} {[%emt 00:00:42]} 50. b5 {[%clk 00:52:46]}
{[%emt 00:00:05]} Kg6 {[%emt 00:00:22]} 51. Rc7 {[%emt 00:00:04]} Kf6 {[%clk
00:25:03]} {[%emt 00:00:33]} 52. b6 {[%clk 00:53:44]} {[%emt 00:00:06]} Ke6
{[%clk 00:25:10]} {[%emt 00:00:21]} 53. b7 {[%clk 00:53:46]} {[%emt 00:00:16]}
Kd6 54. b8=Q {[%emt 00:00:19]} Kd5 {[%clk 00:24:26]} {[%emt 00:00:42]} 55. Qd8+
{[%emt 00:01:01]} Ke6 {[%clk 00:24:18]} {[%emt 00:00:03]} 56. Re7+ {[%clk
00:54:39]} {[%emt 00:00:08]} Kf6 {[%clk 00:24:08]} {[%emt 00:00:30]} 57. Qf8+
{[%clk 00:55:08]} {[%emt 00:00:12]} Kg5 {[%emt 00:00:15]} 58. Rg7+ {[%emt
00:00:05]} Kh5 {[%clk 00:23:31]} {[%emt 00:00:14]} 59. Qh8# {[%clk 00:55:07]}
1-0

[Event "ONJK DE"]
[Site "Enschede, Netherlands"]
[Date "2022.08.11"]
[Round "8.1"]
[White "Gang, Kevin Wan Ze"]
[Black "Groenewoud, Joel"]
[Result "1/2-1/2"]
[TimeControl "40min + 30sec/move"]
[WhiteElo "1105"]
[BlackElo "1497"]

1. e4 {[%clk 00:40:59]} {[%emt 00:00:02]} c6 {[%clk 00:40:58]} {[%emt
00:00:03]} 2. d4 {[%clk 00:41:25]} {[%emt 00:00:03]} d5 {[%clk 00:41:20]}
{[%emt 00:00:08]} 3. Nc3 {[%clk 00:41:51]} {[%emt 00:00:05]} dxe4 {[%clk
00:41:43]} {[%emt 00:00:06]} 4. Nxe4 {[%clk 00:42:11]} {[%emt 00:00:09]} Nf6
{[%clk 00:42:05]} {[%emt 00:00:08]} 5. Nxf6+ {[%clk 00:42:24]} {[%emt
00:00:17]} exf6 {[%clk 00:42:29]} {[%emt 00:00:07]} 6. Bc4 {[%clk 00:41:38]}
{[%emt 00:01:16]} Bd6 {[%clk 00:42:53]} {[%emt 00:00:06]} 7. Nf3 {[%clk
00:41:34]} {[%emt 00:00:34]} O-O {[%clk 00:43:16]} {[%emt 00:00:07]} 8. O-O
{[%clk 00:41:04]} {[%emt 00:01:00]} Nd7 {[%clk 00:43:30]} {[%emt 00:00:16]} 9.
Re1 {[%clk 00:40:50]} {[%emt 00:00:43]} Re8 {[%clk 00:43:47]} {[%emt 00:00:13]}
10. b3 {[%clk 00:38:38]} {[%emt 00:02:43]} Nf8 {[%clk 00:43:50]} {[%emt
00:00:27]} 11. Bb2 {[%clk 00:37:48]} {[%emt 00:01:20]} Bg4 {[%clk 00:43:57]}
{[%emt 00:00:23]} 12. Rxe8 {[%clk 00:37:30]} {[%emt 00:00:47]} Qxe8 {[%clk
00:44:13]} {[%emt 00:00:14]} 13. Qe2 {[%clk 00:37:09]} {[%emt 00:00:50]} b5
{[%clk 00:41:16]} {[%emt 00:03:29]} 14. Qxe8 {[%clk 00:37:03]} {[%emt
00:00:35]} Rxe8 {[%clk 00:41:32]} {[%emt 00:00:15]} 15. Bd3 {[%clk 00:37:22]}
{[%emt 00:00:10]} Ng6 {[%clk 00:35:52]} {[%emt 00:06:10]} 16. Bxg6 {[%clk
00:36:51]} {[%emt 00:01:01]} fxg6 {[%clk 00:35:59]} {[%emt 00:00:24]} 17. Re1
{[%clk 00:36:45]} {[%emt 00:00:35]} Rc8 {[%clk 00:31:38]} {[%emt 00:04:52]} 18.
h3 {[%clk 00:36:51]} {[%emt 00:00:24]} Bxf3 {[%clk 00:27:25]} {[%emt 00:04:43]}
19. gxf3 {[%clk 00:37:13]} {[%emt 00:00:07]} Kf7 {[%clk 00:27:13]} {[%emt
00:00:42]} 20. c4 {[%clk 00:37:15]} {[%emt 00:00:29]} bxc4 {[%clk 00:24:39]}
{[%emt 00:03:03]} 21. bxc4 {[%clk 00:37:40]} {[%emt 00:00:06]} Rb8 {[%clk
00:24:20]} {[%emt 00:00:40]} 22. Bc3 {[%clk 00:38:04]} {[%emt 00:00:14]} g5
{[%clk 00:20:44]} {[%emt 00:04:07]} 23. Re2 {[%clk 00:37:41]} {[%emt 00:00:52]}
Ba3 {[%clk 00:17:54]} {[%emt 00:03:20]} 24. Kg2 {[%clk 00:37:22]} {[%emt
00:00:51]} Rb1 {[%clk 00:16:38]} {[%emt 00:01:40]} 25. Rd2 {[%clk 00:35:48]}
{[%emt 00:02:09]} Rc1 {[%clk 00:10:31]} {[%emt 00:06:37]} 26. Rd3 {[%clk
00:33:50]} {[%emt 00:02:28]} Rc2 {[%clk 00:09:04]} {[%emt 00:01:58]} 27. d5
{[%clk 00:33:57]} {[%emt 00:00:22]} cxd5 {[%clk 00:05:49]} {[%emt 00:03:45]} 28.
cxd5 {[%clk 00:34:11]} {[%emt 00:00:17]} Bd6 {[%clk 00:04:07]} {[%emt
00:02:11]} 29. a3 {[%clk 00:34:00]} {[%emt 00:00:42]} Bxa3 {[%clk 00:01:31]}
{[%emt 00:03:06]} 30. Bxf6 {[%clk 00:33:05]} {[%emt 00:01:25]} gxf6 {[%clk
00:00:36]} {[%emt 00:01:25]} 31. Rxa3 {[%clk 00:33:24]} {[%emt 00:00:11]} Rc7
{[%clk 00:00:48]} {[%emt 00:00:17]} 32. Ra6 {[%clk 00:32:41]} {[%emt 00:01:14]}
Kg6 {[%clk 00:00:37]} {[%emt 00:00:40]} 33. Rc6 {[%clk 00:32:03]} {[%emt
00:01:08]} Rd7 {[%clk 00:00:34]} {[%emt 00:00:34]} 34. d6 {[%clk 00:32:18]}
{[%emt 00:00:16]} Kf5 {[%clk 00:00:37]} {[%emt 00:00:26]} 35. Rc7 {[%clk
00:32:10]} {[%emt 00:00:39]} Ke6 {[%clk 00:00:55]} {[%emt 00:00:11]} 36. Rc6
{[%clk 00:32:08]} {[%emt 00:00:32]} Rxd6 {[%clk 00:01:01]} {[%emt 00:00:24]} 37.
Rc7 {[%clk 00:32:28]} {[%emt 00:00:10]} Rd7 {[%clk 00:00:40]} {[%emt 00:00:52]}
38. Rc6+ {[%clk 00:32:50]} {[%emt 00:00:07]} Kf5 {[%clk 00:00:41]} {[%emt
00:00:28]} 39. Rc5+ {[%clk 00:32:35]} {[%emt 00:00:45]} Kg6 {[%clk 00:00:52]}
{[%emt 00:00:19]} 40. Ra5 {[%clk 00:32:48]} {[%emt 00:00:17]} Rf7 {[%clk
00:00:39]} {[%emt 00:00:44]} 41. Kg3 {[%clk 00:33:02]} {[%emt 00:00:15]} h6
{[%clk 00:00:34]} {[%emt 00:00:36]} 42. f4 {[%clk 00:33:17]} {[%emt 00:00:15]}
Rb7 {[%clk 00:00:37]} {[%emt 00:00:26]} 43. f3 {[%clk 00:32:55]} {[%emt
00:00:53]} Rc7 {[%clk 00:00:34]} {[%emt 00:00:33]} 44. fxg5 {[%clk 00:32:46]}
{[%emt 00:00:38]} hxg5 {[%clk 00:00:38]} {[%emt 00:00:26]} 45. h4 {[%clk
00:32:33]} {[%emt 00:00:44]} gxh4+ {[%clk 00:00:36]} {[%emt 00:00:32]} 46. Kxh4
{[%clk 00:32:55]} {[%emt 00:00:07]} Rc3 {[%clk 00:00:37]} {[%emt 00:00:29]} 47.
Rxa7 {[%clk 00:32:38]} {[%emt 00:00:48]} Rxf3 {[%clk 00:00:56]} {[%emt
00:00:11]} 48. Kg4 {[%clk 00:32:52]} {[%emt 00:00:15]} Rf1 {[%clk 00:00:44]}
{[%emt 00:00:43]} 49. Ra6 {[%clk 00:33:08]} {[%emt 00:00:15]} Rb1 {[%clk
00:00:53]} {[%emt 00:00:20]} 50. Ra4 {[%clk 00:33:03]} {[%emt 00:00:34]} f5+
{[%clk 00:00:56]} {[%emt 00:00:28]} 51. Kf4 {[%clk 00:33:15]} {[%emt 00:00:17]}
Rf1+ {[%clk 00:01:18]} {[%emt 00:00:09]} 52. Kg3 {[%clk 00:33:26]} {[%emt
00:00:13]} Kg5 {[%clk 00:01:30]} {[%emt 00:00:24]} 53. Ra5 {[%clk 00:33:34]}
{[%emt 00:00:22]} Rb1 {[%clk 00:01:42]} {[%emt 00:00:18]} 54. Ra4 {[%clk
00:33:36]} {[%emt 00:00:28]} Rb3+ {[%clk 00:01:36]} {[%emt 00:00:36]} 55. Kg2
{[%clk 00:33:59]} {[%emt 00:00:06]} f4 {[%clk 00:01:21]} {[%emt 00:00:45]} 56.
Ra2 {[%clk 00:33:48]} {[%emt 00:00:42]} Rg3+ {[%clk 00:01:06]} {[%emt
00:00:46]} 57. Kh2 {[%clk 00:33:29]} {[%emt 00:00:48]} Kg4 {[%clk 00:00:42]}
{[%emt 00:00:55]} 58. Rg2 {[%clk 00:33:44]} {[%emt 00:00:14]} Rxg2+ {[%clk
00:00:51]} {[%emt 00:00:21]} 59. Kxg2 {[%clk 00:34:09]} {[%emt 00:00:05]} f3+
{[%clk 00:01:12]} {[%emt 00:00:10]} 60. Kf1 {[%clk 00:34:20]} {[%emt 00:00:19]}
Kg3 {[%clk 00:01:20]} {[%emt 00:00:21]} 61. Kg1 {[%clk 00:34:44]} {[%emt
00:00:07]} f2+ {[%clk 00:01:40]} {[%emt 00:00:10]} 62. Kf1 {[%clk 00:34:54]}
{[%emt 00:00:19]} Kf3 {[%emt 00:00:16]} 1/2-1/2

[Event "ONJK DE"]
[Site "Enschede, Netherlands"]
[Date "2022.08.11"]
[Round "8.2"]
[White "Frederiks, Jesse"]
[Black "Decraene, Lotus"]
[Result "1-0"]
[TimeControl "40min + 30sec/move"]
[WhiteElo "1302"]
[BlackElo "1332"]

1. d4 {[%clk 00:40:50]} {[%emt 00:00:09]} d5 {[%clk 00:40:58]} {[%emt
00:00:04]} 2. c4 {[%clk 00:41:14]} {[%emt 00:00:06]} e6 {[%clk 00:41:23]}
{[%emt 00:00:05]} 3. Nc3 {[%clk 00:41:37]} {[%emt 00:00:06]} Nf6 {[%clk
00:41:47]} {[%emt 00:00:06]} 4. Bg5 {[%clk 00:42:01]} {[%emt 00:00:05]} Be7
{[%clk 00:38:57]} {[%emt 00:03:21]} 5. e3 {[%clk 00:41:12]} {[%emt 00:01:19]}
Nbd7 {[%clk 00:39:00]} {[%emt 00:00:28]} 6. Nf3 {[%clk 00:40:54]} {[%emt
00:00:46]} O-O {[%clk 00:38:29]} {[%emt 00:01:02]} 7. Qc2 {[%clk 00:38:33]}
{[%emt 00:02:50]} c5 {[%clk 00:35:02]} {[%emt 00:03:59]} 8. cxd5 {[%clk
00:36:59]} {[%emt 00:02:02]} exd5 {[%clk 00:35:29]} {[%emt 00:00:03]} 9. Be2
{[%clk 00:36:22]} {[%emt 00:01:07]} Re8 {[%clk 00:31:52]} {[%emt 00:04:08]} 10.
O-O {[%clk 00:33:44]} {[%emt 00:03:07]} b6 {[%clk 00:27:00]} {[%emt 00:05:23]}
11. Rac1 {[%clk 00:31:11]} {[%emt 00:03:01]} cxd4 {[%clk 00:26:25]} {[%emt
00:01:08]} 12. Nxd4 {[%clk 00:30:45]} {[%emt 00:00:54]} Bb7 {[%clk 00:25:13]}
{[%emt 00:01:43]} 13. Rfd1 {[%clk 00:24:04]} {[%emt 00:07:10]} Rc8 {[%clk
00:22:23]} {[%emt 00:03:20]} 14. Qb1 {[%clk 00:20:07]} {[%emt 00:04:26]} Nc5
{[%clk 00:20:40]} {[%emt 00:02:15]} 15. Bd3 {[%clk 00:17:16]} {[%emt 00:03:15]}
Nfe4 {[%clk 00:19:39]} {[%emt 00:01:38]} 16. Bxe7 {[%clk 00:16:34]} {[%emt
00:01:11]} Qxe7 {[%clk 00:19:56]} {[%emt 00:00:13]} 17. Nxe4 {[%clk 00:14:34]}
{[%emt 00:02:29]} dxe4 {[%clk 00:19:03]} {[%emt 00:01:24]} 18. Be2 {[%clk
00:12:03]} {[%emt 00:02:53]} Rf8 {[%clk 00:19:05]} {[%emt 00:00:36]} 19. a3
{[%clk 00:10:51]} {[%emt 00:01:41]} f5 {[%clk 00:18:40]} {[%emt 00:00:56]} 20.
b4 {[%clk 00:10:35]} {[%emt 00:00:45]} Ne6 {[%clk 00:15:16]} {[%emt 00:03:53]}
21. Bc4 {[%clk 00:10:36]} {[%emt 00:00:31]} Rf6 {[%clk 00:14:07]} {[%emt
00:01:40]} 22. Bxe6+ {[%clk 00:10:15]} {[%emt 00:00:49]} Rxe6 {[%clk 00:14:34]}
{[%emt 00:00:04]} 23. Nxe6 {[%clk 00:10:29]} {[%emt 00:00:16]} Rxc1 {[%clk
00:14:31]} {[%emt 00:00:33]} 24. Qxc1 {[%clk 00:10:30]} {[%emt 00:00:29]} Qxe6
{[%clk 00:14:57]} {[%emt 00:00:04]} 25. Rd8+ {[%clk 00:10:18]} {[%emt
00:00:42]} Kf7 {[%clk 00:15:21]} {[%emt 00:00:07]} 26. Qc7+ {[%clk 00:10:38]}
{[%emt 00:00:09]} Kf6 {[%clk 00:15:14]} {[%emt 00:00:37]} 27. Rd6 {[%clk
00:11:01]} {[%emt 00:00:07]} 1-0

[Event "ONJK DE"]
[Site "Enschede, Netherlands"]
[Date "2022.08.11"]
[Round "8.3"]
[White "Terlouw, Wouter"]
[Black "Declerck, Adriaan"]
[Result "1/2-1/2"]
[TimeControl "40min + 30sec/move"]
[WhiteElo "1720"]
[BlackElo "1371"]

1. d4 {[%clk 00:40:57]} {[%emt 00:00:02]} Nf6 {[%clk 00:40:58]} {[%emt
00:00:03]} 2. c4 {[%clk 00:41:20]} {[%emt 00:00:06]} e6 {[%clk 00:41:25]}
{[%emt 00:00:03]} 3. g3 {[%clk 00:41:41]} {[%emt 00:00:08]} b6 {[%clk
00:41:52]} {[%emt 00:00:04]} 4. Bg2 {[%clk 00:42:00]} {[%emt 00:00:11]} d5
{[%clk 00:42:18]} {[%emt 00:00:04]} 5. Nc3 {[%clk 00:42:08]} {[%emt 00:00:22]}
Bb7 {[%clk 00:42:44]} {[%emt 00:00:05]} 6. Nf3 {[%clk 00:42:25]} {[%emt
00:00:13]} Be7 {[%clk 00:43:08]} {[%emt 00:00:05]} 7. O-O {[%clk 00:42:22]}
{[%emt 00:00:33]} O-O {[%clk 00:43:31]} {[%emt 00:00:08]} 8. Bf4 {[%clk
00:41:43]} {[%emt 00:01:07]} dxc4 {[%clk 00:42:54]} {[%emt 00:01:08]} 9. Qc2
{[%clk 00:40:57]} {[%emt 00:01:14]} Nbd7 {[%clk 00:42:13]} {[%emt 00:01:13]} 10.
e4 {[%clk 00:39:10]} {[%emt 00:02:16]} c5 {[%clk 00:41:13]} {[%emt 00:01:32]}
11. e5 {[%clk 00:36:40]} {[%emt 00:03:00]} Nd5 {[%clk 00:40:24]} {[%emt
00:01:19]} 12. Ne2 {[%clk 00:34:52]} {[%emt 00:02:09]} Rc8 {[%clk 00:36:52]}
{[%emt 00:04:11]} 13. Qxc4 {[%clk 00:30:45]} {[%emt 00:04:37]} Qc7 {[%clk
00:31:23]} {[%emt 00:05:59]} 14. Rac1 {[%clk 00:24:16]} {[%emt 00:06:56]} Qb8
{[%clk 00:31:39]} {[%emt 00:00:17]} 15. Qa4 {[%clk 00:21:14]} {[%emt 00:03:29]}
Rfd8 {[%clk 00:31:18]} {[%emt 00:00:54]} 16. Be3 {[%clk 00:16:10]} {[%emt
00:05:31]} Qa8 {[%clk 00:27:58]} {[%emt 00:03:52]} 17. Qd1 {[%clk 00:14:09]}
{[%emt 00:02:23]} cxd4 {[%clk 00:24:14]} {[%emt 00:04:23]} 18. Rxc8 {[%clk
00:13:24]} {[%emt 00:01:15]} Rxc8 {[%clk 00:24:38]} {[%emt 00:00:06]} 19. Bxd4
{[%clk 00:13:35]} {[%emt 00:00:19]} Bc5 {[%clk 00:23:39]} {[%emt 00:01:29]} 20.
Qd2 {[%clk 00:12:20]} {[%emt 00:01:40]} Bxd4 {[%clk 00:20:48]} {[%emt
00:03:26]} 21. Nexd4 {[%clk 00:11:20]} {[%emt 00:01:30]} Nc5 {[%clk 00:18:47]}
{[%emt 00:02:31]} 22. Re1 {[%clk 00:08:30]} {[%emt 00:03:19]} Ne7 {[%clk
00:17:26]} {[%emt 00:01:53]} 23. Nh4 {[%clk 00:06:33]} {[%emt 00:02:22]} Bxg2
{[%clk 00:17:38]} {[%emt 00:00:22]} 24. Nxg2 {[%clk 00:06:55]} {[%emt
00:00:07]} a6 {[%clk 00:17:33]} {[%emt 00:00:36]} 25. b4 {[%clk 00:05:45]}
{[%emt 00:01:40]} Ne4 {[%clk 00:14:30]} {[%emt 00:03:33]} 26. Qe3 {[%clk
00:04:45]} {[%emt 00:01:30]} Nc3 {[%clk 00:14:19]} {[%emt 00:00:41]} 27. a3
{[%clk 00:04:30]} {[%emt 00:00:46]} Ncd5 {[%clk 00:12:44]} {[%emt 00:02:05]} 28.
Qd2 {[%clk 00:03:32]} {[%emt 00:01:24]} Nc6 {[%clk 00:09:27]} {[%emt 00:03:50]}
29. Nf4 {[%clk 00:02:24]} {[%emt 00:01:30]} Nxd4 {[%clk 00:08:24]} {[%emt
00:01:41]} 30. Qxd4 {[%clk 00:02:46]} {[%emt 00:00:08]} Nxf4 {[%clk 00:08:37]}
{[%emt 00:00:17]} 31. Qxf4 {[%clk 00:02:46]} {[%emt 00:00:30]} Qc6 {[%clk
00:08:49]} {[%emt 00:00:18]} 32. Qd4 {[%clk 00:02:45]} {[%emt 00:00:30]} b5
{[%clk 00:07:27]} {[%emt 00:01:53]} 33. Rd1 {[%clk 00:02:39]} {[%emt 00:00:35]}
h6 {[%clk 00:07:25]} {[%emt 00:00:33]} 34. Rd3 {[%clk 00:01:47]} {[%emt
00:01:19]} Qc1+ {[%clk 00:07:26]} {[%emt 00:00:31]} 35. Kg2 {[%clk 00:02:05]}
{[%emt 00:00:12]} Qc6+ {[%clk 00:06:36]} {[%emt 00:01:20]} 36. Kg1 {[%clk
00:01:16]} {[%emt 00:01:19]} Qc1+ {[%clk 00:06:54]} {[%emt 00:00:12]} 37. Kg2
{[%clk 00:01:39]} {[%emt 00:00:07]} Qc6+ {[%clk 00:07:19]} {[%emt 00:00:05]} 38.
Rf3 {[%clk 00:01:26]} {[%emt 00:00:43]} Kf8 {[%clk 00:05:59]} {[%emt 00:01:50]}
39. Qa7 {[%clk 00:01:18]} {[%emt 00:00:37]} Rc7 {[%clk 00:06:07]} {[%emt
00:00:23]} 40. Qb8+ {[%clk 00:01:19]} {[%emt 00:00:28]} Rc8 {[%clk 00:06:20]}
{[%emt 00:00:18]} 41. Qa7 {[%clk 00:01:38]} {[%emt 00:00:11]} Rc7 {[%clk
00:06:43]} {[%emt 00:00:07]} 42. Qb8+ {[%clk 00:02:00]} {[%emt 00:00:07]} Rc8
{[%clk 00:07:08]} {[%emt 00:00:05]} 1/2-1/2